[Event "Late-Titled-Tuesday-Blitz-September-26-2023"]
[Site "Chess.com"]
[Date "2023.09.26"]
[Round "3"]
[White "BigAl"]
[Black "Sulthankan"]
[Result "0-1"]
[WhiteElo "2544"]
[BlackElo "2340"]
[TimeControl "180+1"]
[EndTime "14:27:26 PDT"]
[Termination "Sulthankan won by resignation"]

1. Nf3 {[%clk 0:02:59.9]} 1... Nf6 {[%clk 0:02:59.9]} 2. g3 {[%clk 0:03:00.5]}
2... g6 {[%clk 0:03:00.1]} 3. Bg2 {[%clk 0:03:01.2]} 3... Bg7 {[%clk 0:03:00.8]}
4. O-O {[%clk 0:03:01.8]} 4... O-O {[%clk 0:03:01.6]} 5. d3 {[%clk 0:03:02.5]}
5... d5 {[%clk 0:03:01.6]} 6. Nbd2 {[%clk 0:03:01.9]} 6... Nc6 {[%clk
0:03:01.9]} 7. e4 {[%clk 0:03:02.4]} 7... e5 {[%clk 0:03:01.6]} 8. c3 {[%clk
0:02:58.3]} 8... h6 {[%clk 0:02:57.5]} 9. Re1 {[%clk 0:02:46.2]} 9... Re8 {[%clk
0:02:57.1]} 10. a4 {[%clk 0:02:39.3]} 10... a5 {[%clk 0:02:55.4]} 11. Qb3 {[%clk
0:02:28.6]} 11... Be6 {[%clk 0:02:31.4]} 12. exd5 {[%clk 0:02:06.4]} 12... Nxd5
{[%clk 0:02:32.3]} 13. Nc4 {[%clk 0:02:07.1]} 13... Nb6 {[%clk 0:02:14.7]} 14.
Qb5 {[%clk 0:01:54]} 14... e4 {[%clk 0:02:02.6]} 15. Nfd2 {[%clk 0:01:24.7]}
15... exd3 {[%clk 0:01:34.3]} 16. Nxb6 {[%clk 0:01:23.7]} 16... cxb6 {[%clk
0:01:30]} 17. Rd1 {[%clk 0:00:54]} 17... Bg4 {[%clk 0:01:11]} 18. Nf3 {[%clk
0:00:52.2]} 18... Ne5 {[%clk 0:01:07]} 19. Nxe5 {[%clk 0:00:35.1]} 19... Bxd1
{[%clk 0:01:06.6]} 20. Bf4 {[%clk 0:00:30.6]} 20... Bxa4 {[%clk 0:00:45.6]} 21.
Rxa4 {[%clk 0:00:13.8]} 21... d2 {[%clk 0:00:45.6]} 22. Bxd2 {[%clk 0:00:12.2]}
22... Qxd2 {[%clk 0:00:45.2]} 23. Nf3 {[%clk 0:00:10.4]} 23... Qd1+ {[%clk
0:00:43.6]} 24. Qf1 {[%clk 0:00:09.9]} 24... Qxa4 {[%clk 0:00:43.3]} 25. h4
{[%clk 0:00:10.8]} 25... Rad8 {[%clk 0:00:41.6]} 26. Kh2 {[%clk 0:00:11.4]}
26... Qd7 {[%clk 0:00:39.3]} 27. h5 {[%clk 0:00:11.8]} 27... g5 {[%clk
0:00:39.6]} 28. Qc4 {[%clk 0:00:10.2]} 28... b5 {[%clk 0:00:39.3]} 29. Qa2
{[%clk 0:00:09.8]} 29... a4 {[%clk 0:00:39.3]} 30. Ng1 {[%clk 0:00:07.9]} 30...
Qe6 {[%clk 0:00:38]} 31. Qa3 {[%clk 0:00:08.2]} 31... Bf8 {[%clk 0:00:36.9]} 32.
Qa1 {[%clk 0:00:08.9]} 32... Rd2 {[%clk 0:00:37.2]} 33. Qf1 {[%clk 0:00:07.4]}
33... Qe1 {[%clk 0:00:28.1]} 34. Qxb5 {[%clk 0:00:07.6]} 34... Qxf2 {[%clk
0:00:28]} 35. Qxb7 {[%clk 0:00:07.6]} 35... Qxg2+ {[%clk 0:00:21.9]} 36. Qxg2
{[%clk 0:00:07.2]} 36... Rxg2+ {[%clk 0:00:22.8]} 37. Kxg2 {[%clk 0:00:08.1]}
37... Rb8 {[%clk 0:00:23.7]} 0-1

[Event "Late-Titled-Tuesday-Blitz-September-26-2023"]
[Site "Chess.com"]
[Date "2023.09.26"]
[Round "3"]
[White "German_Bazeev"]
[Black "rdarruda"]
[Result "1-0"]
[WhiteElo "2759"]
[BlackElo "2483"]
[TimeControl "180+1"]
[EndTime "14:27:27 PDT"]
[Termination "German_Bazeev won by resignation"]

1. d4 {[%clk 0:03:00.9]} 1... Nf6 {[%clk 0:02:53.6]} 2. c4 {[%clk 0:03:01.5]}
2... e5 {[%clk 0:02:52.8]} 3. Nf3 {[%clk 0:02:56.9]} 3... exd4 {[%clk
0:02:52.4]} 4. Nxd4 {[%clk 0:02:57.8]} 4... Nc6 {[%clk 0:02:52]} 5. Nxc6 {[%clk
0:02:57.9]} 5... bxc6 {[%clk 0:02:52.1]} 6. g3 {[%clk 0:02:58.5]} 6... d5 {[%clk
0:02:51.6]} 7. Bg2 {[%clk 0:02:59.1]} 7... Bb4+ {[%clk 0:02:51.7]} 8. Bd2 {[%clk
0:02:58.8]} 8... Qe7 {[%clk 0:02:51.6]} 9. O-O {[%clk 0:02:58.5]} 9... O-O
{[%clk 0:02:49.5]} 10. cxd5 {[%clk 0:02:43.2]} 10... cxd5 {[%clk 0:02:48.1]} 11.
Bxb4 {[%clk 0:02:43.9]} 11... Qxb4 {[%clk 0:02:47.7]} 12. Qd2 {[%clk 0:02:44.6]}
12... Qxd2 {[%clk 0:02:45.1]} 13. Nxd2 {[%clk 0:02:45.5]} 13... Ba6 {[%clk
0:02:39.5]} 14. Rfe1 {[%clk 0:02:36.1]} 14... Rfe8 {[%clk 0:02:38.3]} 15. e3
{[%clk 0:02:35.6]} 15... c6 {[%clk 0:02:37.9]} 16. Rac1 {[%clk 0:02:34.9]} 16...
Rac8 {[%clk 0:02:35.4]} 17. Rc5 {[%clk 0:02:33.6]} 17... Bb7 {[%clk 0:02:33.1]}
18. Rec1 {[%clk 0:02:29.4]} 18... Nd7 {[%clk 0:02:32.8]} 19. Ra5 {[%clk
0:02:25.9]} 19... Ra8 {[%clk 0:02:27.8]} 20. Nb3 {[%clk 0:02:23.1]} 20... Ne5
{[%clk 0:02:20.9]} 21. Nc5 {[%clk 0:02:20.6]} 21... Bc8 {[%clk 0:02:21]} 22. Ra4
{[%clk 0:02:03.2]} 22... Kf8 {[%clk 0:02:17.5]} 23. b3 {[%clk 0:01:58.6]} 23...
Bf5 {[%clk 0:02:13.9]} 24. Rd4 {[%clk 0:01:46.2]} 24... a5 {[%clk 0:02:10.3]}
25. f3 {[%clk 0:01:45.5]} 25... Red8 {[%clk 0:01:59.5]} 26. Kf2 {[%clk
0:01:44.6]} 26... Nd7 {[%clk 0:01:52.8]} 27. Nb7 {[%clk 0:01:39.3]} 27... Rdb8
{[%clk 0:01:52.4]} 28. Nd6 {[%clk 0:01:37.7]} 28... Bg6 {[%clk 0:01:45.8]} 29.
Rxc6 {[%clk 0:01:36.1]} 29... a4 {[%clk 0:01:44.3]} 30. b4 {[%clk 0:01:36.4]}
30... Ne5 {[%clk 0:01:43.7]} 31. Rc3 {[%clk 0:01:34.9]} 31... Rb6 {[%clk
0:01:40.2]} 32. Rxd5 {[%clk 0:01:34.6]} 32... f6 {[%clk 0:01:35.9]} 33. f4
{[%clk 0:01:27.7]} 33... Ng4+ {[%clk 0:01:35.7]} 34. Ke2 {[%clk 0:01:27.3]}
34... Rd8 {[%clk 0:01:34.4]} 35. h3 {[%clk 0:01:11.2]} 35... Nxe3 {[%clk
0:01:20.8]} 36. Kxe3 {[%clk 0:01:10.9]} 36... Rdxd6 {[%clk 0:01:19.4]} 37. Rxd6
{[%clk 0:01:11.8]} 37... Rxd6 {[%clk 0:01:19.6]} 38. Bc6 {[%clk 0:01:03.4]}
38... Be8 {[%clk 0:01:13.8]} 39. Bxe8 {[%clk 0:01:03]} 39... Kxe8 {[%clk
0:01:14.7]} 40. Rd3 {[%clk 0:00:54.3]} 40... Rc6 {[%clk 0:01:13.6]} 41. a3
{[%clk 0:00:49.5]} 41... Rc1 {[%clk 0:01:12.3]} 42. Ke4 {[%clk 0:00:48.3]} 42...
Rb1 {[%clk 0:01:05.1]} 43. g4 {[%clk 0:00:47.4]} 43... Ke7 {[%clk 0:01:03.3]}
44. h4 {[%clk 0:00:45.3]} 44... g6 {[%clk 0:01:03.1]} 45. g5 {[%clk 0:00:42.9]}
45... f5+ {[%clk 0:00:58.3]} 46. Ke5 {[%clk 0:00:43.3]} 46... Rb3 {[%clk
0:00:57.7]} 47. Kd4 {[%clk 0:00:43.6]} 47... Rb1 {[%clk 0:00:54.8]} 48. Kc5
{[%clk 0:00:41.2]} 48... Rf1 {[%clk 0:00:54.2]} 49. b5 {[%clk 0:00:40.9]} 49...
Rxf4 {[%clk 0:00:47.3]} 50. b6 {[%clk 0:00:40.1]} 50... Rf1 {[%clk 0:00:48.2]}
51. b7 {[%clk 0:00:35.7]} 51... Rb1 {[%clk 0:00:48]} 52. Kc6 {[%clk 0:00:36]}
52... f4 {[%clk 0:00:44.3]} 53. Kc7 {[%clk 0:00:34.2]} 53... Rc1+ {[%clk
0:00:44.3]} 54. Kb8 {[%clk 0:00:33.4]} 54... Ke6 {[%clk 0:00:43.2]} 55. Ka7
{[%clk 0:00:33]} 55... Rb1 {[%clk 0:00:43.5]} 56. Rd4 {[%clk 0:00:27]} 56...
Rxb7+ {[%clk 0:00:39.3]} 57. Kxb7 {[%clk 0:00:26.4]} 57... Ke5 {[%clk
0:00:40.2]} 58. Rxa4 {[%clk 0:00:26.4]} 58... f3 {[%clk 0:00:40.5]} 59. Ra6
{[%clk 0:00:27]} 1-0

[Event "Late-Titled-Tuesday-Blitz-September-26-2023"]
[Site "Chess.com"]
[Date "2023.09.26"]
[Round "3"]
[White "amanmuhammethommadov"]
[Black "EsmeraldasAnderson03"]
[Result "0-1"]
[WhiteElo "2590"]
[BlackElo "2428"]
[TimeControl "180+1"]
[EndTime "14:27:27 PDT"]
[Termination "EsmeraldasAnderson03 won by resignation"]

1. e4 {[%clk 0:03:00.9]} 1... c5 {[%clk 0:02:56.2]} 2. Nf3 {[%clk 0:03:00.6]}
2... d6 {[%clk 0:02:56.9]} 3. d4 {[%clk 0:03:01]} 3... cxd4 {[%clk 0:02:57.8]}
4. Nxd4 {[%clk 0:03:01.9]} 4... Nf6 {[%clk 0:02:58.5]} 5. Nc3 {[%clk 0:03:02.6]}
5... a6 {[%clk 0:02:59.1]} 6. Bg5 {[%clk 0:03:02.9]} 6... e6 {[%clk 0:02:59.4]}
7. f4 {[%clk 0:03:03.1]} 7... Nbd7 {[%clk 0:02:59.3]} 8. Qf3 {[%clk 0:03:02.5]}
8... Qc7 {[%clk 0:02:59.9]} 9. O-O-O {[%clk 0:03:02.3]} 9... b5 {[%clk
0:03:00.6]} 10. Bd3 {[%clk 0:03:02.9]} 10... Bb7 {[%clk 0:03:00.7]} 11. Rhe1
{[%clk 0:03:03.1]} 11... Be7 {[%clk 0:02:59.9]} 12. Qg3 {[%clk 0:02:58.1]} 12...
O-O {[%clk 0:02:57.6]} 13. e5 {[%clk 0:02:56.1]} 13... dxe5 {[%clk 0:02:52]} 14.
fxe5 {[%clk 0:02:57]} 14... Nh5 {[%clk 0:02:52.2]} 15. Qh4 {[%clk 0:02:54.2]}
15... Bxg5+ {[%clk 0:02:49.4]} 16. Qxg5 {[%clk 0:02:55.1]} 16... g6 {[%clk
0:02:49.2]} 17. g4 {[%clk 0:02:55.2]} 17... Ng7 {[%clk 0:02:48.4]} 18. Ne4
{[%clk 0:02:55.9]} 18... Bxe4 {[%clk 0:02:43.6]} 19. Rxe4 {[%clk 0:02:48.8]}
19... Nc5 {[%clk 0:02:34]} 20. Re3 {[%clk 0:02:49]} 20... Rfd8 {[%clk
0:02:32.8]} 21. Nf3 {[%clk 0:02:39.4]} 21... Rac8 {[%clk 0:02:30.5]} 22. c3
{[%clk 0:02:12.4]} 22... b4 {[%clk 0:02:30.2]} 23. Bc2 {[%clk 0:01:11.6]} 23...
Rxd1+ {[%clk 0:02:02.5]} 24. Kxd1 {[%clk 0:01:12.5]} 24... Qd7+ {[%clk
0:01:09.7]} 25. Kc1 {[%clk 0:01:04.8]} 25... bxc3 {[%clk 0:01:05.1]} 26. Rxc3
{[%clk 0:01:05.6]} 26... Nd3+ {[%clk 0:01:00]} 27. Bxd3 {[%clk 0:00:19.1]} 27...
Rxc3+ {[%clk 0:00:59.5]} 28. bxc3 {[%clk 0:00:20]} 28... Qxd3 {[%clk 0:00:59.8]}
29. Kb2 {[%clk 0:00:15.6]} 29... h6 {[%clk 0:00:46.5]} 30. Qf4 {[%clk
0:00:14.6]} 30... Qb5+ {[%clk 0:00:41]} 31. Kc2 {[%clk 0:00:13.7]} 31... Ne8
{[%clk 0:00:28.3]} 32. Nd2 {[%clk 0:00:13.3]} 32... Nc7 {[%clk 0:00:27.2]} 33.
Qxh6 {[%clk 0:00:10.8]} 33... Qxe5 {[%clk 0:00:25.8]} 34. Qh3 {[%clk 0:00:09.6]}
34... Nd5 {[%clk 0:00:25.8]} 35. Qg3 {[%clk 0:00:10.2]} 35... Qe2 {[%clk
0:00:21.8]} 36. Qd3 {[%clk 0:00:06.9]} 36... Ne3+ {[%clk 0:00:20.7]} 0-1

[Event "Late-Titled-Tuesday-Blitz-September-26-2023"]
[Site "Chess.com"]
[Date "2023.09.26"]
[Round "3"]
[White "2k28Lakers"]
[Black "YouShallNotPass001"]
[Result "1-0"]
[WhiteElo "2561"]
[BlackElo "2343"]
[TimeControl "180+1"]
[EndTime "14:27:31 PDT"]
[Termination "2k28Lakers won by resignation"]

1. e4 {[%clk 0:03:00.9]} 1... e5 {[%clk 0:02:58.4]} 2. Nf3 {[%clk 0:03:01.5]}
2... Nc6 {[%clk 0:02:58.4]} 3. Bc4 {[%clk 0:03:02.2]} 3... Nf6 {[%clk
0:02:57.5]} 4. d3 {[%clk 0:03:01.9]} 4... Bc5 {[%clk 0:02:57.8]} 5. c3 {[%clk
0:03:02.2]} 5... d6 {[%clk 0:02:58.2]} 6. a4 {[%clk 0:03:02.2]} 6... a6 {[%clk
0:02:57.4]} 7. O-O {[%clk 0:03:01.2]} 7... Ba7 {[%clk 0:02:56.7]} 8. Re1 {[%clk
0:03:01.5]} 8... h6 {[%clk 0:02:55.7]} 9. Nbd2 {[%clk 0:03:01.5]} 9... g5 {[%clk
0:02:55]} 10. b4 {[%clk 0:03:02.1]} 10... g4 {[%clk 0:02:49.9]} 11. Nh4 {[%clk
0:02:47.5]} 11... Nh7 {[%clk 0:02:46.1]} 12. Nf5 {[%clk 0:02:40.2]} 12... Bxf5
{[%clk 0:02:31.4]} 13. exf5 {[%clk 0:02:41.1]} 13... Qg5 {[%clk 0:02:27.5]} 14.
b5 {[%clk 0:02:32.7]} 14... axb5 {[%clk 0:02:17.8]} 15. axb5 {[%clk 0:02:33.6]}
15... Ne7 {[%clk 0:02:12.5]} 16. b6 {[%clk 0:02:23.8]} 16... cxb6 {[%clk
0:02:06.2]} 17. Ne4 {[%clk 0:02:23.4]} 17... Qh4 {[%clk 0:02:04.7]} 18. g3
{[%clk 0:02:06.6]} 18... Qh3 {[%clk 0:02:00.4]} 19. Nxd6+ {[%clk 0:02:06.6]}
19... Kf8 {[%clk 0:01:59.3]} 20. Nxf7 {[%clk 0:01:01]} 20... b5 {[%clk
0:01:33.7]} 21. Be3 {[%clk 0:00:48.1]} 21... Ng5 {[%clk 0:01:25.1]} 22. Nxg5
{[%clk 0:00:40.2]} 22... hxg5 {[%clk 0:01:23.6]} 23. f6 {[%clk 0:00:24.5]} 23...
Qxh2+ {[%clk 0:01:12]} 24. Kf1 {[%clk 0:00:24.8]} 24... Qh1+ {[%clk 0:01:05.5]}
25. Ke2 {[%clk 0:00:24.9]} 25... Qf3+ {[%clk 0:01:04.5]} 26. Kd2 {[%clk
0:00:25]} 26... Bxe3+ {[%clk 0:00:52.3]} 27. Rxe3 {[%clk 0:00:25.1]} 27... Qxf2+
{[%clk 0:00:12.7]} 28. Re2 {[%clk 0:00:24.7]} 28... Rxa1 {[%clk 0:00:12.9]} 29.
Qxa1 {[%clk 0:00:22.9]} 29... Qc5 {[%clk 0:00:12.7]} 30. fxe7+ {[%clk
0:00:22.1]} 30... Kxe7 {[%clk 0:00:13]} 31. Bb3 {[%clk 0:00:19.6]} 31... Rc8
{[%clk 0:00:13.6]} 32. Qa5 {[%clk 0:00:17.5]} 32... Kf6 {[%clk 0:00:11.9]} 33.
Qb4 {[%clk 0:00:17.5]} 33... Qc7 {[%clk 0:00:11.2]} 34. Bd5 {[%clk 0:00:16.5]}
34... Rd8 {[%clk 0:00:11.6]} 35. Qe4 {[%clk 0:00:16.5]} 35... Qd6 {[%clk
0:00:10.7]} 36. Rf2+ {[%clk 0:00:16.9]} 36... Kg7 {[%clk 0:00:10.9]} 37. Bb3
{[%clk 0:00:16.1]} 37... Rd7 {[%clk 0:00:09.3]} 38. Qf5 {[%clk 0:00:16.1]} 38...
b4 {[%clk 0:00:08.7]} 39. Qxg5+ {[%clk 0:00:16.3]} 39... Kh7 {[%clk 0:00:08.6]}
40. Qf5+ {[%clk 0:00:16.6]} 40... Kg7 {[%clk 0:00:08.6]} 41. Qg5+ {[%clk
0:00:16.9]} 41... Kh7 {[%clk 0:00:08.9]} 42. Rh2+ {[%clk 0:00:17.3]} 1-0

[Event "Late-Titled-Tuesday-Blitz-September-26-2023"]
[Site "Chess.com"]
[Date "2023.09.26"]
[Round "3"]
[White "fks_stal_mielec"]
[Black "brunoo2003"]
[Result "0-1"]
[WhiteElo "2300"]
[BlackElo "2473"]
[TimeControl "180+1"]
[EndTime "14:27:35 PDT"]
[Termination "brunoo2003 won on time"]

1. c4 {[%clk 0:02:56]} 1... Nf6 {[%clk 0:02:21.9]} 2. Nf3 {[%clk 0:02:55.4]}
2... e6 {[%clk 0:02:19.1]} 3. g3 {[%clk 0:02:55.5]} 3... d5 {[%clk 0:02:16.6]}
4. Bg2 {[%clk 0:02:55.8]} 4... dxc4 {[%clk 0:02:17]} 5. Qa4+ {[%clk 0:02:55.1]}
5... Nbd7 {[%clk 0:02:16.3]} 6. O-O {[%clk 0:02:52.5]} 6... a6 {[%clk
0:02:17.2]} 7. Qxc4 {[%clk 0:02:52.1]} 7... b5 {[%clk 0:02:17.8]} 8. Qc2 {[%clk
0:02:52.2]} 8... Bb7 {[%clk 0:02:16.7]} 9. d4 {[%clk 0:02:45.6]} 9... c5 {[%clk
0:02:15.9]} 10. dxc5 {[%clk 0:02:41.6]} 10... Bxc5 {[%clk 0:02:16.8]} 11. Nc3
{[%clk 0:02:37.9]} 11... Rc8 {[%clk 0:02:15.1]} 12. a3 {[%clk 0:02:35.8]} 12...
O-O {[%clk 0:02:12]} 13. Bf4 {[%clk 0:02:30.6]} 13... Qb6 {[%clk 0:02:09.6]} 14.
Rad1 {[%clk 0:02:19.8]} 14... h6 {[%clk 0:02:05.5]} 15. b4 {[%clk 0:02:13.8]}
15... Be7 {[%clk 0:02:00.6]} 16. Qb2 {[%clk 0:02:10.2]} 16... Nd5 {[%clk
0:01:53.8]} 17. Nxd5 {[%clk 0:02:06.2]} 17... Bxd5 {[%clk 0:01:54.4]} 18. e4
{[%clk 0:01:56.2]} 18... Bf6 {[%clk 0:01:39.4]} 19. Qb1 {[%clk 0:01:43.3]} 19...
Bc6 {[%clk 0:01:34.1]} 20. Bd6 {[%clk 0:01:40.8]} 20... Rfe8 {[%clk 0:01:30.1]}
21. e5 {[%clk 0:01:40.9]} 21... Be7 {[%clk 0:01:30]} 22. Bxe7 {[%clk 0:01:36.2]}
22... Rxe7 {[%clk 0:01:30.9]} 23. Rd6 {[%clk 0:01:36.2]} 23... Qb7 {[%clk
0:01:27.8]} 24. Qd3 {[%clk 0:01:20.5]} 24... Nxe5 {[%clk 0:01:14.7]} 25. Nxe5
{[%clk 0:00:43.3]} 25... Bxg2 {[%clk 0:01:09.6]} 26. Rd1 {[%clk 0:00:32.5]}
26... Bd5 {[%clk 0:00:50.6]} 27. Qd4 {[%clk 0:00:20.6]} 27... Rec7 {[%clk
0:00:39.2]} 28. Nd3 {[%clk 0:00:14.5]} 28... Rc4 {[%clk 0:00:26]} 29. Qe3 {[%clk
0:00:09.9]} 29... Bh1 {[%clk 0:00:18.6]} 30. Ne1 {[%clk 0:00:06.7]} 30... Bd5
{[%clk 0:00:11.9]} 31. Nd3 {[%clk 0:00:05.4]} 31... R8c6 {[%clk 0:00:10.1]} 32.
Rd8+ {[%clk 0:00:03.8]} 32... Kh7 {[%clk 0:00:09]} 33. Nc5 {[%clk 0:00:04.2]}
33... Qe7 {[%clk 0:00:07.4]} 34. Rd7 {[%clk 0:00:02.9]} 34... Qf6 {[%clk
0:00:07.7]} 35. Qd3+ {[%clk 0:00:02.5]} 35... Qg6 {[%clk 0:00:06.9]} 36. Qxg6+
{[%clk 0:00:02]} 36... Kxg6 {[%clk 0:00:07.8]} 37. f4 {[%clk 0:00:01.6]} 37...
Rc3 {[%clk 0:00:07.1]} 0-1

[Event "Late-Titled-Tuesday-Blitz-September-26-2023"]
[Site "Chess.com"]
[Date "2023.09.26"]
[Round "3"]
[White "vugarrasulov"]
[Black "scandalgod"]
[Result "1-0"]
[WhiteElo "2944"]
[BlackElo "2498"]
[TimeControl "180+1"]
[EndTime "14:27:38 PDT"]
[Termination "vugarrasulov won by resignation"]

1. e4 {[%clk 0:03:00.9]} 1... e5 {[%clk 0:02:55.5]} 2. f4 {[%clk 0:03:00.4]}
2... Bc5 {[%clk 0:02:54.6]} 3. Nf3 {[%clk 0:03:00.3]} 3... d6 {[%clk 0:02:53.7]}
4. d4 {[%clk 0:02:58.4]} 4... exd4 {[%clk 0:02:52.5]} 5. Bd3 {[%clk 0:02:58.9]}
5... Nc6 {[%clk 0:02:49.1]} 6. O-O {[%clk 0:02:59.1]} 6... Nf6 {[%clk
0:02:47.8]} 7. h3 {[%clk 0:02:58.3]} 7... O-O {[%clk 0:02:31.2]} 8. Kh2 {[%clk
0:02:24.6]} 8... Re8 {[%clk 0:02:24.4]} 9. Nbd2 {[%clk 0:02:24.1]} 9... Nb4
{[%clk 0:02:17.6]} 10. a3 {[%clk 0:02:23.2]} 10... Nxd3 {[%clk 0:02:15.6]} 11.
cxd3 {[%clk 0:02:24.1]} 11... Bb6 {[%clk 0:02:13.5]} 12. Qe1 {[%clk 0:02:22.2]}
12... c5 {[%clk 0:02:07]} 13. Qh4 {[%clk 0:02:20.4]} 13... Bc7 {[%clk
0:02:02.9]} 14. Kg1 {[%clk 0:02:15.2]} 14... Bd7 {[%clk 0:01:58]} 15. b4 {[%clk
0:02:14.8]} 15... Kh8 {[%clk 0:01:39.3]} 16. Ng5 {[%clk 0:02:12.1]} 16... Qe7
{[%clk 0:01:32.8]} 17. Ndf3 {[%clk 0:02:01.9]} 17... h6 {[%clk 0:01:29]} 18. e5
{[%clk 0:01:58.9]} 18... Nh7 {[%clk 0:01:24.7]} 19. g4 {[%clk 0:01:22.8]} 19...
Rf8 {[%clk 0:01:10.1]} 20. Bd2 {[%clk 0:01:15.7]} 20... dxe5 {[%clk 0:00:58.6]}
21. Rae1 {[%clk 0:01:13.5]} 21... Nxg5 {[%clk 0:00:37.8]} 22. fxg5 {[%clk
0:01:12.6]} 22... Bc6 {[%clk 0:00:30.1]} 23. gxh6 {[%clk 0:01:04.2]} 23... Qxh4
{[%clk 0:00:26.1]} 24. hxg7+ {[%clk 0:01:04.5]} 24... Kxg7 {[%clk 0:00:26.2]}
25. Nxh4 {[%clk 0:01:05.4]} 25... f6 {[%clk 0:00:23.7]} 26. Nf5+ {[%clk
0:01:04.1]} 26... Kg6 {[%clk 0:00:22.6]} 27. bxc5 {[%clk 0:01:02]} 27... Rf7
{[%clk 0:00:20.4]} 28. Kf2 {[%clk 0:00:57.4]} 28... Rh8 {[%clk 0:00:20.2]} 29.
h4 {[%clk 0:00:57.8]} 29... Rd7 {[%clk 0:00:19.4]} 30. h5+ {[%clk 0:00:57.2]}
30... Kf7 {[%clk 0:00:19.3]} 31. Rg1 {[%clk 0:00:54.9]} 31... Ke6 {[%clk
0:00:19.3]} 32. h6 {[%clk 0:00:53.4]} 32... Rdh7 {[%clk 0:00:18.4]} 33. Nxd4+
{[%clk 0:00:51.2]} 33... Kd5 {[%clk 0:00:17.9]} 34. Nxc6 {[%clk 0:00:50.1]}
34... bxc6 {[%clk 0:00:18.8]} 35. Be3 {[%clk 0:00:49.5]} 35... Rg8 {[%clk
0:00:17.3]} 36. Kf3 {[%clk 0:00:47.6]} 36... Rg6 {[%clk 0:00:16.5]} 37. Rh1
{[%clk 0:00:47.5]} 37... Rh8 {[%clk 0:00:13.4]} 38. Rh5 {[%clk 0:00:47]} 38...
Rhg8 {[%clk 0:00:12.5]} 39. h7 {[%clk 0:00:46.8]} 39... Rh8 {[%clk 0:00:12.8]}
40. Reh1 {[%clk 0:00:47.5]} 40... Rg7 {[%clk 0:00:13]} 41. Rh6 {[%clk
0:00:44.3]} 41... Bd8 {[%clk 0:00:11.5]} 42. Bf2 {[%clk 0:00:42.1]} 42... Be7
{[%clk 0:00:11]} 43. Bh4 {[%clk 0:00:41.7]} 43... Rf7 {[%clk 0:00:11.1]} 44. Bf2
{[%clk 0:00:41.4]} 44... Bxc5 {[%clk 0:00:10.2]} 45. Bxc5 {[%clk 0:00:40.6]}
45... Kxc5 {[%clk 0:00:10.4]} 46. Ke4 {[%clk 0:00:41.5]} 46... Kd6 {[%clk
0:00:07.1]} 47. Kf5 {[%clk 0:00:41.8]} 47... Kd5 {[%clk 0:00:05.3]} 48. R1h5
{[%clk 0:00:38.6]} 48... Kd6 {[%clk 0:00:05]} 49. Rxf6+ {[%clk 0:00:38]} 49...
Rxf6+ {[%clk 0:00:04]} 50. Kxf6 {[%clk 0:00:38.9]} 1-0

[Event "Late-Titled-Tuesday-Blitz-September-26-2023"]
[Site "Chess.com"]
[Date "2023.09.26"]
[Round "3"]
[White "elpatodice"]
[Black "djano"]
[Result "0-1"]
[WhiteElo "2464"]
[BlackElo "2666"]
[TimeControl "180+1"]
[EndTime "14:27:38 PDT"]
[Termination "djano won by resignation"]

1. e4 {[%clk 0:03:00.9]} 1... c5 {[%clk 0:02:59.6]} 2. Nf3 {[%clk 0:03:01.2]}
2... Nc6 {[%clk 0:03:00]} 3. d4 {[%clk 0:03:00.9]} 3... cxd4 {[%clk 0:03:00.9]}
4. Nxd4 {[%clk 0:03:01.5]} 4... g6 {[%clk 0:03:00.4]} 5. Nc3 {[%clk 0:03:01.1]}
5... Bg7 {[%clk 0:03:00.2]} 6. Be3 {[%clk 0:03:01.8]} 6... Nf6 {[%clk
0:03:00.6]} 7. Bc4 {[%clk 0:03:02.1]} 7... O-O {[%clk 0:03:01.3]} 8. Bb3 {[%clk
0:03:02.4]} 8... Re8 {[%clk 0:03:01.4]} 9. O-O {[%clk 0:02:47.1]} 9... d6 {[%clk
0:02:57.7]} 10. f3 {[%clk 0:02:45.5]} 10... Na5 {[%clk 0:02:54.4]} 11. Qd2
{[%clk 0:02:37.1]} 11... b6 {[%clk 0:02:53.7]} 12. Nd5 {[%clk 0:02:33.7]} 12...
Ba6 {[%clk 0:02:46]} 13. Rfe1 {[%clk 0:02:31.3]} 13... e6 {[%clk 0:02:39.4]} 14.
Nxf6+ {[%clk 0:02:27.4]} 14... Bxf6 {[%clk 0:02:39.1]} 15. c3 {[%clk 0:02:16.4]}
15... Rc8 {[%clk 0:02:35.9]} 16. Ne2 {[%clk 0:02:14.4]} 16... Bc4 {[%clk
0:02:32.5]} 17. Nc1 {[%clk 0:02:06.8]} 17... d5 {[%clk 0:02:30]} 18. exd5 {[%clk
0:01:53.8]} 18... exd5 {[%clk 0:02:30.2]} 19. Bf2 {[%clk 0:01:53.2]} 19... Qc7
{[%clk 0:02:16.9]} 20. Rd1 {[%clk 0:01:48]} 20... Be5 {[%clk 0:02:10.7]} 21. g3
{[%clk 0:01:39.5]} 21... h5 {[%clk 0:02:00.2]} 22. f4 {[%clk 0:01:38.4]} 22...
Bd6 {[%clk 0:01:56.5]} 23. Bd4 {[%clk 0:01:38.2]} 23... Kh7 {[%clk 0:01:49.8]}
24. Bc2 {[%clk 0:01:34.4]} 24... f5 {[%clk 0:01:46.3]} 25. Nd3 {[%clk
0:01:14.4]} 25... Bxd3 {[%clk 0:01:42.9]} 26. Bxd3 {[%clk 0:01:15.3]} 26... Nc4
{[%clk 0:01:42.3]} 27. Qf2 {[%clk 0:01:07.9]} 27... b5 {[%clk 0:01:34.5]} 28.
Re1 {[%clk 0:01:00]} 28... a6 {[%clk 0:01:31.8]} 29. Rxe8 {[%clk 0:00:59.1]}
29... Rxe8 {[%clk 0:01:32.6]} 30. Re1 {[%clk 0:00:58.3]} 30... Qd7 {[%clk
0:01:33.2]} 31. Rxe8 {[%clk 0:00:54.1]} 31... Qxe8 {[%clk 0:01:34.1]} 32. Bxc4
{[%clk 0:00:52.7]} 32... bxc4 {[%clk 0:01:32.9]} 33. Qe3 {[%clk 0:00:51.2]}
33... Qe4 {[%clk 0:01:30.2]} 34. Qxe4 {[%clk 0:00:46.5]} 34... fxe4 {[%clk
0:01:25.8]} 35. b3 {[%clk 0:00:44.7]} 35... cxb3 {[%clk 0:01:23.8]} 36. axb3
{[%clk 0:00:45.6]} 36... Kg8 {[%clk 0:01:16]} 37. Kf2 {[%clk 0:00:45.8]} 37...
Kf7 {[%clk 0:01:16.4]} 38. Ke3 {[%clk 0:00:45.1]} 38... Ke6 {[%clk 0:01:16.9]}
39. c4 {[%clk 0:00:42.4]} 39... dxc4 {[%clk 0:01:16.7]} 40. bxc4 {[%clk
0:00:43.3]} 40... Kf5 {[%clk 0:01:17.2]} 41. h3 {[%clk 0:00:42]} 41... a5 {[%clk
0:01:16.8]} 42. c5 {[%clk 0:00:22.9]} 42... Bc7 {[%clk 0:01:17.1]} 43. Bb2
{[%clk 0:00:18.7]} 43... a4 {[%clk 0:01:14.1]} 44. Ba3 {[%clk 0:00:19.2]} 44...
Ba5 {[%clk 0:01:01.3]} 45. Kd4 {[%clk 0:00:17.4]} 45... h4 {[%clk 0:00:59.6]}
46. gxh4 {[%clk 0:00:14.1]} 46... Kxf4 {[%clk 0:01:00.5]} 47. c6 {[%clk
0:00:14.8]} 47... Kf3 {[%clk 0:00:55.2]} 48. Bd6 {[%clk 0:00:14]} 48... e3
{[%clk 0:00:52.3]} 49. c7 {[%clk 0:00:13.1]} 49... Bxc7 {[%clk 0:00:49.4]} 50.
Bxc7 {[%clk 0:00:14]} 50... a3 {[%clk 0:00:47.4]} 51. Kd3 {[%clk 0:00:11.9]}
51... e2 {[%clk 0:00:41]} 52. Kd2 {[%clk 0:00:08.1]} 52... Kf2 {[%clk
0:00:39.5]} 53. Bb6+ {[%clk 0:00:08.6]} 53... Kf1 {[%clk 0:00:39.7]} 0-1